[Event "Reykjavik Open 2022"]
[Site "Reykjavik"]
[Date "2022.04.07"]
[Round "2.13"]
[White "Mannion, Stephen R"]
[Black "Peng, Li Min"]
[Result "1/2-1/2"]
[ECO "B06"]
[WhiteElo "2281"]
[BlackElo "2498"]
[Annotator "RC"]
[PlyCount "229"]
[EventDate "2022.04.06"]
[EventCountry "ISL"]
[SourceTitle "playchess.com"]
[Source "ChessBase"]
[SourceQuality "1"]
[TimeControl "40/5400+30:1800+30"]

1. e4 {[%emt 0:00:03]} g6 {[%emt 0:00:28]} 2. d4 {[%emt 0:00:10]} Bg7 {[%emt 0:00:05]} 3. Nc3 {[%emt 0:00:12]} d6 {[%emt 0:00:08]} 4. f4 {[%emt 0:00:36]} a6 {[%emt 0:00:08]} 5. Nf3 {[%emt 0:00:45]} b5 {[%emt 0:00:06]} 6. Bd3 {[%emt 0:02:10]} Nd7 {[%emt 0:00:08]} 7. e5 {[%emt 0:05:08]} c5 {[%emt 0:00:11]} 8. Be4 {[%emt 0:04:33]} Rb8 {[%emt 0:00:08]} 9. Be3 {[%emt 0:05:07]} b4 {[%emt 0:00:32]} 10. Ne2 {[%emt 0:01:41]} Qc7 {[%emt 0:00:05]} 11. c3 {[%emt 0:04:12]} bxc3 {[%emt 0:00:21]} 12. bxc3 {[%emt 0:00:16]} Nh6 {[%emt 0:00:21]} 13. O-O {[%emt 0:06:46]} O-O {[%emt 0:00:42]} 14. Rb1 {[%emt 0:11:26]} Nb6 {[%emt 0:00:36]} 15. dxc5 {[%emt 0:16:05]} dxc5 {[%emt 0:00:12]} 16. Kh1 {[%emt 0:01:44]} Be6 {[%emt 0:00:30]} 17. Qc2 {[%emt 0:08:49]} Nc4 {[%emt 0:04:46]} 18. Bc1 {[%emt 0:02:48]} Rxb1 {[%emt 0:00:25]} 19. Qxb1 {[%emt 0:00:03]} Rb8 {[%emt 0:01:10]} 20. Qc2 {[%emt 0:03:52]} Ng4 {[%emt 0:01:11]} 21. Qa4 {[%emt 0:00:42]} Bd7 {[%emt 0:00:10]} 22. Qxc4 {[%emt 0:02:35]} Bb5 {[%emt 0:00:04]} 23. Qd5 {[%emt 0:00:20]} Bxe2 {[%emt 0:09:20]} 24. Re1 {[%emt 0:00:04]} e6 {[%emt 0:00:08]} 25. Qd2 {[%emt 0:07:28]} Nf2+ {[%emt 0:00:23]} 26. Kg1 {[%emt 0:00:02]} Nxe4 {[%emt 0:00:05]} 27. Qxe2 {[%emt 0:00:04]} Nxc3 {[%emt 0:00:04]} 28. Qxa6 {[%emt 0:00:03]} c4 {[%emt 0:00:06]} 29. Nd2 {[%emt 0:05:17]} Rc8 {[%emt 0:10:07]} 30. Ba3 {[%emt 0:03:31]} Nd5 {[%emt 0:02:15]} 31. Bd6 {[%emt 0:01:49]} Qc6 {[%emt 0:00:03]} 32. Qxc6 {[%emt 0:02:57]} Rxc6 {[%emt 0:00:05]} 33. g3 {[%emt 0:00:11]} c3 {[%emt 0:01:45]} 34. Nb3 {[%emt 0:00:06]} Bf8 {[%emt 0:05:18]} 35. Bxf8 {[%emt 0:00:38]} Kxf8 {[%emt 0:00:02]} 36. Kf2 {[%emt 0:00:08]} Nb4 {[%emt 0:00:07]} 37. Nc1 {[%emt 0:01:08]} h6 {[%emt 0:04:01]} 38. Re4 {[%emt 0:01:22]} Nd5 {[%emt 0:00:13]} 39. Ke1 {[%emt 0:00:29]} Rb6 {[%emt 0:00:16]} 40. Nb3 {[%emt 0:00:00]} Nb4 {[%emt 0:00:00]} 41. Nc1 {[%emt 0:03:50]} Nc2+ {[%emt 0:00:39]} 42. Kd1 {[%emt 0:02:50]} Nb4 {[%emt 0:02:04]} 43. Rc4 {[%emt 0:09:58]} Nd5 {[%emt 0:00:02]} 44. Rc8+ {[%emt 0:00:15]} Kg7 {[%emt 0:00:01]} 45. Nb3 {[%emt 0:00:26]} Ra6 {[%emt 0:00:48]} 46. Nc1 {[%emt 0:00:16]} Ra4 {[%emt 0:00:48]} 47. Ke2 {[%emt 0:09:48]} Re4+ {[%emt 0:10:18]} 48. Kd3 {[%emt 0:00:59]} Re1 {[%emt 0:00:07]} 49. Ne2 {[%emt 0:01:00]} Rd1+ {[%emt 0:12:25]} 50. Ke4 {[%emt 0:00:05]} Re1 {[%emt 0:00:02]} 51. Kd3 {[%emt 0:00:02]} Nb4+ {[%emt 0:02:48]} 52. Kxc3 {[%emt 0:00:22]} Rxe2 {[%emt 0:00:04]} 53. Kxb4 {[%emt 0:00:06]} Rxa2 {[%emt 0:00:02]} 54. h4 {[%emt 0:04:09]} Rb2+ {[%emt 0:01:17]} 55. Ka3 {[%emt 0:01:35]} Rf2 {[%emt 0:01:53]} 56. Kb4 {[%emt 0:01:06]} Rb2+ {[%emt 0:02:00]} 57. Ka3 {[%emt 0:00:02]} Re2 {[%emt 0:02:11]} 58. Kb4 {[%emt 0:01:39]} g5 {[%emt 0:00:24]} 59. hxg5 {[%emt 0:00:51]} hxg5 {[%emt 0:00:01]} 60. Kc3 {[%emt 0:01:42]} g4 {[%emt 0:14:50]} 61. Kd4 {[%emt 0:00:11]} Rg2 {[%emt 0:00:05]} 62. Rc3 {[%emt 0:00:12]} Kg6 {[%emt 0:00:03]} 63. Ke4 {[%emt 0:00:19]} Ra2 {[%emt 0:00:17]} 64. Rd3 {[%emt 0:00:17]} Rb2 {[%emt 0:00:25]} 65. Re3 {[%emt 0:01:59]} Rb4+ {[%emt 0:01:21]} 66. Kd3 {[%emt 0:00:03]} Kf5 {[%emt 0:00:04]} 67. Ke2 {[%emt 0:00:15]} Rb2+ {[%emt 0:02:00]} 68. Kd3 {[%emt 0:00:06]} Ra2 {[%emt 0:00:49]} 69. Kc3 {[%emt 0:00:23]} Rf2 {[%emt 0:01:50]} 70. Kd3 {[%emt 0:00:09]} Rg2 {[%emt 0:00:40]} 71. Kd4 {[%emt 0:00:14]} Rd2+ {[%emt 0:01:00]} 72. Rd3 {[%emt 0:00:03]} Rc2 {[%emt 0:00:23]} 73. Re3 {[%emt 0:00:03]} Rc7 {[%emt 0:01:58]} 74. Kd3 {[%emt 0:00:05]} Rd7+ {[%emt 0:00:05]} 75. Ke2 {[%emt 0:00:12]} Rd4 {[%emt 0:00:08]} 76. Ke1 {[%emt 0:00:11]} Kg6 {[%emt 0:00:13]} 77. Ke2 {[%emt 0:00:32]} Ra4 {[%emt 0:00:10]} 78. Kd3 {[%emt 0:00:32]} Ra2 {[%emt 0:00:11]} 79. Ke4 {[%emt 0:00:19]} Kg7 {[%emt 0:00:13]} 80. Rd3 {[%emt 0:00:52]} Kf8 {[%emt 0:00:29]} 81. Ke3 {[%emt 0:01:46]} Ke7 {[%emt 0:00:12]} 82. Rd2 {[%emt 0:00:31]} Ra1 {[%emt 0:01:06]} 83. Rd3 {[%emt 0:01:21]} Rh1 {[%emt 0:00:56]} 84. Ke4 {[%emt 0:00:49]} Rg1 {[%emt 0:00:02]} 85. Rc3 {[%emt 0:00:38]} Kd7 {[%emt 0:00:11]} 86. Kd4 {[%emt 0:00:09]} Rg2 {[%emt 0:03:32]} 87. Ke4 {[%emt 0:00:07]} Rf2 {[%emt 0:00:10]} 88. Kd4 {[%emt 0:00:09]} Rf1 {[%emt 0:00:30]} 89. Ke4 {[%emt 0:00:07]} Re1+ {[%emt 0:00:11]} 90. Kd4 {[%emt 0:00:07]} Ke7 {[%emt 0:00:11]} 91. Re3 {[%emt 0:00:34]} Rg1 {[%emt 0:00:15]} 92. Rc3 {[%emt 0:00:11]} f5 {[%emt 0:00:52]} 93. exf6+ {[%emt 0:02:56]} Kxf6 {[%emt 0:00:01]} 94. Re3 {[%emt 0:00:26]} Ra1 {[%emt 0:00:46]} 95. Kd3 {[%emt 0:00:27]} Ra2 {[%emt 0:00:22]} 96. Ke4 {[%emt 0:00:21]} Ra4+ {[%emt 0:01:39]} 97. Kd3 {[%emt 0:00:04]} Ra2 {[%emt 0:00:53]} 98. Ke4 {[%emt 0:00:13]} Rd2 {[%emt 0:00:00]} 99. Rd3 {[%emt 0:00:10]} Rg2 {[%emt 0:00:46]} 100. Re3 {[%emt 0:00:10]} Rg1 {[%emt 0:00:06]} 101. Kd3 {[%emt 0:00:51]} Rg2 {[%emt 0:00:15]} 102. Ke4 {[%emt 0:00:08]} Rf2 {[%emt 0:00:12]} 103. Ra3 {[%emt 0:00:32]} Rf1 {[%emt 0:00:09]} 104. Rb3 {[%emt 0:00:21]} Re1+ {[%emt 0:00:48]} 105. Re3 {[%emt 0:00:05]} Ra1 {[%emt 0:00:09]} 106. Kd3 {[%emt 0:00:56]} Ra2 {[%emt 0:00:47]} 107. Ke4 {[%emt 0:00:08]} Kf7 {[%emt 0:00:09]} 108. Rd3 {[%emt 0:01:02]} Ke7 {[%emt 0:00:10]} 109. Ke5 {[%emt 0:00:16]} Re2+ {[%emt 0:00:32]} 110. Kd4 {[%emt 0:00:04]} Kd6 {[%emt 0:00:14]} 111. Re3 {[%emt 0:00:24]} Ra2 {[%emt 0:00:39]} 112. Rc3 {[%emt 0:01:02]} Rf2 {[%emt 0:02:09]} 113. Ke4 {[%emt 0:00:13]} Re2+ {[%emt 0:00:27]} 114. Kd4 {[%emt 0:00:13]} Rg2 {[%emt 0:00:39]} 115. Ke4 {[%emt 0:00:07]} 1/2-1/2

[Event "Reykjavik Open 2022"]
[Site "Reykjavik"]
[Date "2022.04.07"]
[Round "2.14"]
[White "Libiszewski, Fabien"]
[Black "Minko, Dmitry"]
[Result "1/2-1/2"]
[ECO "C54"]
[WhiteElo "2505"]
[BlackElo "2298"]
[Annotator "RC"]
[PlyCount "37"]
[EventDate "2022.04.06"]
[EventCountry "ISL"]
[SourceTitle "playchess.com"]
[Source "ChessBase"]
[SourceQuality "1"]
[TimeControl "40/5400+30:1800+30"]

1. e4 {[%emt 0:00:03]} e5 {[%emt 0:00:18]} 2. Nf3 {[%emt 0:00:08]} Nc6 {[%emt 0:00:24]} 3. Bc4 {[%emt 0:00:18]} Bc5 {[%emt 0:01:14]} 4. c3 {[%emt 0:00:31]} Nf6 {[%emt 0:01:04]} 5. d3 {[%emt 0:00:14]} a6 {[%emt 0:00:37]} 6. O-O {[%emt 0:00:53]} d6 {[%emt 0:00:26]} 7. a4 {[%emt 0:01:36]} h6 {[%emt 0:05:33]} 8. Nbd2 {[%emt 0:20:20]} Ba7 {[%emt 0:04:38]} 9. Re1 {[%emt 0:01:11]} O-O {[%emt 0:02:05]} 10. b4 {[%emt 0:01:05]} Ne7 {[%emt 0:06:15]} 11. d4 {[%emt 0:04:33]} exd4 {[%emt 0:20:33]} 12. Nxd4 {[%emt 0:02:38]} Ng6 {[%emt 0:02:16]} 13. Bf1 {[%emt 0:10:04]} Re8 {[%emt 0:05:26]} 14. Bb2 {[%emt 0:02:33]} d5 {[%emt 0:10:14]} 15. exd5 {[%emt 0:01:51]} Bxd4 {[%emt 0:04:15]} 16. cxd4 {[%emt 0:00:35]} Nxd5 {[%emt 0:00:06]} 17. b5 {[%emt 0:00:35]} axb5 {[%emt 0:03:12]} 18. axb5 {[%emt 0:00:08]} Rxa1 {[%emt 0:02:01]} 19. Qxa1 {[%emt 0:01:06]} 1/2-1/2

[Event "Reykjavik Open 2022"]
[Site "Reykjavik"]
[Date "2022.04.07"]
[Round "2.15"]
[White "Sowray, Peter J"]
[Black "Stefansson, Vignir Vatnar"]
[Result "1/2-1/2"]
[ECO "D35"]
[WhiteElo "2226"]
[BlackElo "2484"]
[Annotator "ChessBase"]
[PlyCount "118"]
[EventDate "2022.04.06"]
[EventCountry "ISL"]
[SourceTitle "playchess.com"]
[Source "ChessBase"]
[SourceQuality "1"]
[TimeControl "40/5400+30:1800+30"]

1. d4 {[%emt 0:00:05]} Nf6 {[%emt 0:00:31]} 2. c4 {[%emt 0:00:09]} e6 {[%emt 0:00:30]} 3. Nc3 {[%emt 0:00:08]} d5 {[%emt 0:00:32]} 4. cxd5 {[%emt 0:00:52]} exd5 {[%emt 0:00:49]} 5. Bg5 {[%emt 0:00:29]} c6 {[%emt 0:01:32]} 6. Qc2 {[%emt 0:00:44]} Bd6 {[%emt 0:02:40]} 7. e3 {[%emt 0:01:49]} O-O {[%emt 0:00:11]} 8. Bd3 {[%emt 0:01:29]} h6 {[%emt 0:01:02]} 9. Bh4 {[%emt 0:00:37]} Re8 {[%emt 0:01:55]} 10. Nf3 {[%emt 0:03:14]} Be6 {[%emt 0:01:29]} 11. O-O {[%emt 0:03:28]} Nbd7 {[%emt 0:00:44]} 12. Rab1 {[%emt 0:01:55]} a5 {[%emt 0:02:21]} 13. a3 {[%emt 0:02:20]} Qb8 {[%emt 0:03:03]} 14. Bg3 {[%emt 0:06:42]} Bxg3 {[%emt 0:00:20]} 15. hxg3 {[%emt 0:00:05]} Qd6 {[%emt 0:00:21]} 16. Rfc1 {[%emt 0:05:44]} Nb6 {[%emt 0:04:25]} 17. Na4 {[%emt 0:05:12]} Nxa4 {[%emt 0:01:52]} 18. Qxa4 {[%emt 0:00:03]} Ne4 {[%emt 0:07:34]} 19. Qc2 {[%emt 0:08:19]} a4 {[%emt 0:01:51]} 20. Ne5 {[%emt 0:08:13]} f6 {[%emt 0:02:03]} 21. Ng6 {[%emt 0:01:44]} Bf7 {[%emt 0:05:08]} 22. Nf4 {[%emt 0:00:17]} Qe7 {[%emt 0:08:03]} 23. Ne2 {[%emt 0:07:40]} Bg6 {[%emt 0:05:17]} 24. Nc3 {[%emt 0:05:15]} Nxc3 {[%emt 0:01:35]} 25. Qxc3 {[%emt 0:02:30]} Bxd3 {[%emt 0:00:11]} 26. Qxd3 {[%emt 0:00:02]} Ra5 {[%emt 0:00:09]} 27. b4 {[%emt 0:05:40]} axb3 {[%emt 0:00:16]} 28. Qxb3 {[%emt 0:00:28]} Ra7 {[%emt 0:00:48]} 29. a4 {[%emt 0:03:17]} Rea8 {[%emt 0:00:39]} 30. a5 {[%emt 0:01:20]} Qe6 {[%emt 0:02:39]} 31. Qb6 {[%emt 0:03:00]} Qf5 {[%emt 0:01:11]} 32. Qc7 {[%emt 0:02:31]} Qc8 {[%emt 0:01:20]} 33. Qe7 {[%emt 0:01:51]} b6 {[%emt 0:04:48]} 34. Qd6 {[%emt 0:00:35]} bxa5 {[%emt 0:00:06]} 35. Rxc6 {[%emt 0:01:07]} Qf5 {[%emt 0:02:28]} 36. Rb8+ {[%emt 0:05:29]} Kh7 {[%emt 0:00:20]} 37. Qf8 {[%emt 0:02:17]} Qb1+ {[%emt 0:22:47]} 38. Rxb1 {[%emt 0:00:09]} Rxf8 {[%emt 0:00:02]} 39. Rb3 {[%emt 0:00:22]} a4 {[%emt 0:00:44]} 40. Ra3 {[%emt 0:00:00]} Rb8 {[%emt 0:00:00]} 41. Rc5 {[%emt 0:06:36]} Rb1+ {[%emt 0:11:56]} 42. Kh2 {[%emt 0:00:07]} Rf1 {[%emt 0:06:35]} 43. Rc2 {[%emt 0:05:29]} h5 {[%emt 0:00:36]} 44. g4 {[%emt 0:00:34]} h4 {[%emt 0:03:18]} 45. g3 {[%emt 0:01:00]} g5 {[%emt 0:00:34]} 46. gxh4 {[%emt 0:01:10]} gxh4 {[%emt 0:00:06]} 47. Kg2 {[%emt 0:04:53]} Rb1 {[%emt 0:00:06]} 48. Rca2 {[%emt 0:02:28]} Rg7 {[%emt 0:00:27]} 49. Ra1 {[%emt 0:02:06]} Rxg4+ {[%emt 0:07:37]} 50. Kh3 {[%emt 0:00:27]} Rxa1 {[%emt 0:00:10]} 51. Rxa1 {[%emt 0:00:02]} Re4 {[%emt 0:00:09]} 52. Rxa4 {[%emt 0:00:30]} f5 {[%emt 0:00:02]} 53. Ra5 {[%emt 0:04:18]} f4 {[%emt 0:00:07]} 54. Rxd5 {[%emt 0:00:18]} fxe3 {[%emt 0:00:08]} 55. fxe3 {[%emt 0:00:08]} Kg6 {[%emt 0:00:44]} 56. Re5 {[%emt 0:02:07]} Rxe5 {[%emt 0:00:06]} 57. dxe5 {[%emt 0:00:04]} Kf5 {[%emt 0:00:07]} 58. Kxh4 {[%emt 0:00:04]} Kxe5 {[%emt 0:00:07]} 59. e4 {[%emt 0:00:04]} Kxe4 {[%emt 0:00:08]} 1/2-1/2

[Event "Reykjavik Open 2022"]
[Site "Reykjavik"]
[Date "2022.04.07"]
[Round "2.16"]
[White "Beerdsen, Thomas"]
[Black "Large, Peter G"]
[Result "1-0"]
[ECO "C16"]
[WhiteElo "2508"]
[BlackElo "2335"]
[Annotator "ChessBase"]
[PlyCount "73"]
[EventDate "2022.04.06"]
[EventCountry "ISL"]
[SourceTitle "playchess.com"]
[Source "ChessBase"]
[SourceQuality "1"]
[TimeControl "40/5400+30:1800+30"]

1. e4 {[%emt 0:00:05]} e6 {[%emt 0:01:09]} 2. d4 {[%emt 0:00:09]} d5 {[%emt 0:00:07]} 3. Nc3 {[%emt 0:00:08]} Bb4 {[%emt 0:01:46]} 4. e5 {[%emt 0:00:11]} Ne7 {[%emt 0:00:53]} 5. a3 {[%emt 0:00:44]} Bxc3+ {[%emt 0:00:07]} 6. bxc3 {[%emt 0:00:05]} b6 {[%emt 0:00:38]} 7. Qg4 {[%emt 0:00:44]} Ng6 {[%emt 0:00:15]} 8. h4 {[%emt 0:00:17]} h5 {[%emt 0:00:06]} 9. Qg3 {[%emt 0:00:08]} Ba6 {[%emt 0:00:24]} 10. Bxa6 {[%emt 0:00:31]} Nxa6 {[%emt 0:00:07]} 11. Bg5 {[%emt 0:00:13]} Qd7 {[%emt 0:00:06]} 12. Ne2 {[%emt 0:00:20]} Nb8 {[%emt 0:03:25]} 13. Qf3 {[%emt 0:00:40]} Qa4 {[%emt 0:05:14]} 14. Ng3 {[%emt 0:02:14]} Nd7 {[%emt 0:08:26]} 15. Nxh5 {[%emt 0:08:28]} Rh7 {[%emt 0:00:30]} 16. Ng3 {[%emt 0:28:43]} f6 {[%emt 0:17:46]} 17. exf6 {[%emt 0:09:42]} gxf6 {[%emt 0:00:12]} 18. Qd3 {[%emt 0:02:55]} Ngf8 {[%emt 0:07:42]} 19. Be3 {[%emt 0:01:43]} c5 {[%emt 0:11:29]} 20. h5 {[%emt 0:03:16]} Rc8 {[%emt 0:00:26]} 21. O-O {[%emt 0:03:30]} cxd4 {[%emt 0:03:11]} 22. Bxd4 {[%emt 0:05:58]} Qc4 {[%emt 0:11:01]} 23. Qd2 {[%emt 0:06:09]} Kf7 {[%emt 0:09:18]} 24. f4 {[%emt 0:00:52]} f5 {[%emt 0:02:31]} 25. Qe3 {[%emt 0:07:49]} Nc5 {[%emt 0:06:36]} 26. Rae1 {[%emt 0:00:24]} Ne4 {[%emt 0:02:06]} 27. Nxe4 {[%emt 0:00:16]} dxe4 {[%emt 0:00:06]} 28. Qh3 {[%emt 0:01:39]} Nd7 {[%emt 0:01:40]} 29. Re3 {[%emt 0:04:08]} Rch8 {[%emt 0:04:30]} 30. Bxh8 {[%emt 0:03:20]} Rxh8 {[%emt 0:00:02]} 31. Rg3 {[%emt 0:01:50]} Nf6 {[%emt 0:01:03]} 32. h6 {[%emt 0:02:44]} Ng4 {[%emt 0:01:14]} 33. Qh5+ {[%emt 0:00:52]} Kf8 {[%emt 0:00:59]} 34. Rxg4 {[%emt 0:01:09]} fxg4 {[%emt 0:01:11]} 35. Rd1 {[%emt 0:00:57]} Qe2 {[%emt 0:00:59]} 36. Rd8+ {[%emt 0:00:09]} Ke7 {[%emt 0:00:06]} 37. Qg5+ {[%emt 0:00:06]} 1-0

[Event "Reykjavik Open 2022"]
[Site "Reykjavik"]
[Date "2022.04.07"]
[Round "2.17"]
[White "Zysko, Jan"]
[Black "Laurent-Paoli, Pierre"]
[Result "1/2-1/2"]
[ECO "B17"]
[WhiteElo "2108"]
[BlackElo "2483"]
[Annotator "RC"]
[PlyCount "103"]
[EventDate "2022.04.06"]
[EventCountry "ISL"]
[SourceTitle "playchess.com"]
[Source "ChessBase"]
[SourceQuality "1"]
[TimeControl "40/5400+30:1800+30"]

1. e4 {[%emt 0:00:02]} c6 {[%emt 0:07:39]} 2. d4 {[%emt 0:00:28]} d5 {[%emt 0:00:05]} 3. Nd2 {[%emt 0:00:04]} dxe4 {[%emt 0:00:28]} 4. Nxe4 {[%emt 0:00:04]} Nd7 {[%emt 0:03:01]} 5. c3 {[%emt 0:01:48]} Ngf6 {[%emt 0:01:23]} 6. Nxf6+ {[%emt 0:00:06]} Nxf6 {[%emt 0:00:11]} 7. Bd3 {[%emt 0:00:23]} Qd5 {[%emt 0:08:06]} 8. Qf3 {[%emt 0:04:10]} Bg4 {[%emt 0:06:12]} 9. Qxd5 {[%emt 0:02:24]} Nxd5 {[%emt 0:01:59]} 10. Ne2 {[%emt 0:06:06]} O-O-O {[%emt 0:01:52]} 11. h3 {[%emt 0:02:37]} Bh5 {[%emt 0:01:26]} 12. Nf4 {[%emt 0:03:38]} Nxf4 {[%emt 0:00:40]} 13. Bxf4 {[%emt 0:00:06]} e6 {[%emt 0:03:14]} 14. Be2 {[%emt 0:08:53]} Bg6 {[%emt 0:02:38]} 15. O-O-O {[%emt 0:00:18]} Be4 {[%emt 0:09:48]} 16. f3 {[%emt 0:00:54]} Bg6 {[%emt 0:00:03]} 17. Bd3 {[%emt 0:12:24]} Bxd3 {[%emt 0:03:35]} 18. Rxd3 {[%emt 0:00:40]} h5 {[%emt 0:00:15]} 19. Kc2 {[%emt 0:01:49]} h4 {[%emt 0:00:51]} 20. Re1 {[%emt 0:01:45]} Rh5 {[%emt 0:02:31]} 21. Re5 {[%emt 0:00:59]} Rd5 {[%emt 0:01:04]} 22. Rxh5 {[%emt 0:00:28]} Rxh5 {[%emt 0:00:04]} 23. Re3 {[%emt 0:03:45]} Rf5 {[%emt 0:03:52]} 24. Re4 {[%emt 0:02:13]} Be7 {[%emt 0:00:27]} 25. Bd2 {[%emt 0:08:57]} Bf6 {[%emt 0:03:05]} 26. a4 {[%emt 0:17:55]} Kd7 {[%emt 0:00:19]} 27. Be1 {[%emt 0:02:34]} Rh5 {[%emt 0:00:11]} 28. Kd3 {[%emt 0:01:13]} Be7 {[%emt 0:01:02]} 29. Re5 {[%emt 0:00:45]} f5 {[%emt 0:00:02]} 30. Re2 {[%emt 0:01:34]} Rh8 {[%emt 0:00:38]} 31. Bd2 {[%emt 0:00:45]} g5 {[%emt 0:06:07]} 32. c4 {[%emt 0:03:10]} Rg8 {[%emt 0:02:17]} 33. Be1 {[%emt 0:05:49]} Bf6 {[%emt 0:02:13]} 34. b4 {[%emt 0:01:19]} a6 {[%emt 0:00:04]} 35. Bf2 {[%emt 0:02:10]} Rd8 {[%emt 0:05:01]} 36. c5 {[%emt 0:01:03]} Ke7 {[%emt 0:01:19]} 37. Kc4 {[%emt 0:00:02]} Kf7 {[%emt 0:01:59]} 38. Rd2 {[%emt 0:03:22]} Rd5 {[%emt 0:05:34]} 39. Re2 {[%emt 0:02:43]} e5 {[%emt 0:01:31]} 40. dxe5 {[%emt 0:00:00]} Bxe5 {[%emt 0:00:00]} 41. Be3 {[%emt 0:05:20]} Bf6 {[%emt 0:10:37]} 42. Rd2 {[%emt 0:02:13]} f4 {[%emt 0:04:37]} 43. Bd4 {[%emt 0:00:07]} Ke6 {[%emt 0:04:20]} 44. Rd3 {[%emt 0:02:17]} Bxd4 {[%emt 0:01:13]} 45. Rxd4 {[%emt 0:00:09]} Re5 {[%emt 0:00:02]} 46. Rd6+ {[%emt 0:04:14]} Kf5 {[%emt 0:02:05]} 47. Rd7 {[%emt 0:00:23]} Re2 {[%emt 0:00:05]} 48. Rxb7 {[%emt 0:00:07]} Rxg2 {[%emt 0:00:23]} 49. Rf7+ {[%emt 0:00:38]} Ke5 {[%emt 0:04:16]} 50. Re7+ {[%emt 0:00:20]} Kf5 {[%emt 0:00:41]} 51. Rf7+ {[%emt 0:00:06]} Ke5 {[%emt 0:03:38]} 52. Re7+ {[%emt 0:00:48]} 1/2-1/2

[Event "Reykjavik Open 2022"]
[Site "Reykjavik"]
[Date "2022.04.07"]
[Round "2.18"]
[White "Jarmula, Lukasz"]
[Black "Burlacu, Bogdan"]
[Result "1-0"]
[ECO "E94"]
[WhiteElo "2434"]
[BlackElo "2294"]
[Annotator "RC"]
[PlyCount "87"]
[EventDate "2022.04.06"]
[EventCountry "ISL"]
[SourceTitle "playchess.com"]
[Source "ChessBase"]
[SourceQuality "1"]
[TimeControl "40/5400+30:1800+30"]

1. Nf3 {[%emt 0:07:41]} Nf6 {[%emt 0:00:08]} 2. c4 {[%emt 0:00:06]} g6 {[%emt 0:00:21]} 3. Nc3 {[%emt 0:00:06]} Bg7 {[%emt 0:00:54]} 4. e4 {[%emt 0:00:10]} d6 {[%emt 0:00:33]} 5. d4 {[%emt 0:00:07]} O-O {[%emt 0:00:45]} 6. Be2 {[%emt 0:00:04]} c6 {[%emt 0:08:12]} 7. O-O {[%emt 0:01:37]} Nbd7 {[%emt 0:10:13]} 8. Be3 {[%emt 0:00:43]} e5 {[%emt 0:04:51]} 9. d5 {[%emt 0:01:03]} c5 {[%emt 0:04:58]} 10. Ne1 {[%emt 0:00:09]} Ne8 {[%emt 0:02:11]} 11. g4 {[%emt 0:00:45]} f5 {[%emt 0:04:34]} 12. exf5 {[%emt 0:01:20]} gxf5 {[%emt 0:00:13]} 13. gxf5 {[%emt 0:00:07]} Nb6 {[%emt 0:00:54]} 14. Nf3 {[%emt 0:06:00]} h6 {[%emt 0:12:14]} 15. Kh1 {[%emt 0:02:35]} Bxf5 {[%emt 0:10:50]} 16. Rg1 {[%emt 0:00:57]} Kh8 {[%emt 0:01:16]} 17. Qd2 {[%emt 0:04:07]} Qf6 {[%emt 0:02:42]} 18. Rg3 {[%emt 0:00:37]} e4 {[%emt 0:12:20]} 19. Ne1 {[%emt 0:01:21]} Nd7 {[%emt 0:00:51]} 20. Ng2 {[%emt 0:02:46]} Ne5 {[%emt 0:01:47]} 21. Nf4 {[%emt 0:01:18]} Nf3 {[%emt 0:07:56]} 22. Bxf3 {[%emt 0:07:46]} exf3 {[%emt 0:00:05]} 23. Rag1 {[%emt 0:09:33]} Rf7 {[%emt 0:04:21]} 24. Rxf3 {[%emt 0:03:24]} Qh4 {[%emt 0:01:33]} 25. Rh3 {[%emt 0:01:06]} Qf6 {[%emt 0:02:25]} 26. Rhg3 {[%emt 0:02:07]} Kh7 {[%emt 0:01:38]} 27. Nh5 {[%emt 0:11:15]} Qh4 {[%emt 0:00:36]} 28. Nf4 {[%emt 0:01:35]} Be5 {[%emt 0:03:13]} 29. f3 {[%emt 0:01:32]} Rg7 {[%emt 0:01:05]} 30. Nce2 {[%emt 0:01:45]} Rc8 {[%emt 0:00:54]} 31. Nc1 {[%emt 0:11:43]} Rcc7 {[%emt 0:00:43]} 32. Ncd3 {[%emt 0:02:47]} Rxg3 {[%emt 0:00:23]} 33. Rxg3 {[%emt 0:00:13]} Rg7 {[%emt 0:00:45]} 34. Bf2 {[%emt 0:02:42]} Rxg3 {[%emt 0:00:32]} 35. Bxg3 {[%emt 0:00:08]} Qg5 {[%emt 0:00:01]} 36. Qe3 {[%emt 0:07:33]} Bxf4 {[%emt 0:00:47]} 37. Bxf4 {[%emt 0:00:08]} Qg6 {[%emt 0:00:12]} 38. Nf2 {[%emt 0:00:44]} Ng7 {[%emt 0:01:02]} 39. Qe7 {[%emt 0:03:32]} Bb1 {[%emt 0:00:31]} 40. Bxd6 {[%emt 0:00:00]} Bxa2 {[%emt 0:00:00]} 41. Be5 {[%emt 0:05:38]} Bxc4 {[%emt 0:01:57]} 42. Ne4 {[%emt 0:03:57]} Bxd5 {[%emt 0:00:09]} 43. Nf6+ {[%emt 0:00:13]} Kh8 {[%emt 0:00:07]} 44. Qf8+ {[%emt 0:00:05]} 1-0

[Event "Reykjavik Open 2022"]
[Site "Reykjavik"]
[Date "2022.04.07"]
[Round "2.19"]
[White "Dougherty, Michael"]
[Black "Larkin, Vladyslav"]
[Result "0-1"]
[ECO "A37"]
[WhiteElo "2066"]
[BlackElo "2399"]
[Annotator "ChessBase"]
[PlyCount "90"]
[EventDate "2022.04.06"]
[EventCountry "ISL"]
[SourceTitle "playchess.com"]
[Source "ChessBase"]
[SourceQuality "1"]
[TimeControl "40/5400+30:1800+30"]

1. Nf3 {[%emt 0:00:11]} c5 {[%emt 0:02:17]} 2. c4 {[%emt 0:02:04]} g6 {[%emt 0:00:22]} 3. g3 {[%emt 0:02:11]} Bg7 {[%emt 0:00:05]} 4. Bg2 {[%emt 0:00:07]} Nc6 {[%emt 0:00:14]} 5. Nc3 {[%emt 0:01:03]} Nh6 {[%emt 0:00:54]} 6. h4 {[%emt 0:07:11]} d6 {[%emt 0:01:18]} 7. h5 {[%emt 0:02:03]} Bg4 {[%emt 0:32:12]} 8. d3 {[%emt 0:17:11]} Qd7 {[%emt 0:01:59]} 9. Bxh6 {[%emt 0:15:08]} Bxh6 {[%emt 0:00:05]} 10. hxg6 {[%emt 0:00:14]} hxg6 {[%emt 0:00:15]} 11. Qc1 {[%emt 0:05:17]} Bh5 {[%emt 0:03:58]} 12. Qd1 {[%emt 0:05:11]} O-O-O {[%emt 0:15:14]} 13. Nd5 {[%emt 0:02:49]} Bg7 {[%emt 0:00:23]} 14. Rb1 {[%emt 0:07:08]} Bxf3 {[%emt 0:02:13]} 15. Bxf3 {[%emt 0:00:52]} Nd4 {[%emt 0:05:17]} 16. e3 {[%emt 0:05:10]} Nxf3+ {[%emt 0:08:40]} 17. Qxf3 {[%emt 0:00:08]} Rxh1+ {[%emt 0:00:07]} 18. Qxh1 {[%emt 0:00:08]} e6 {[%emt 0:00:02]} 19. Nc3 {[%emt 0:03:11]} d5 {[%emt 0:01:13]} 20. cxd5 {[%emt 0:05:22]} exd5 {[%emt 0:00:05]} 21. Rc1 {[%emt 0:00:38]} Kb8 {[%emt 0:00:17]} 22. Qh4 {[%emt 0:03:57]} d4 {[%emt 0:04:20]} 23. Nb5 {[%emt 0:04:19]} a6 {[%emt 0:05:18]} 24. Qf4+ {[%emt 0:00:39]} Ka8 {[%emt 0:00:04]} 25. Nc7+ {[%emt 0:02:25]} Ka7 {[%emt 0:00:05]} 26. Rxc5 {[%emt 0:03:27]} dxe3 {[%emt 0:04:33]} 27. Rd5 {[%emt 0:01:31]} Qe7 {[%emt 0:00:31]} 28. Qxe3+ {[%emt 0:03:16]} Qxe3+ {[%emt 0:00:04]} 29. fxe3 {[%emt 0:00:03]} Rc8 {[%emt 0:00:23]} 30. Rd7 {[%emt 0:01:00]} Be5 {[%emt 0:00:04]} 31. Nd5 {[%emt 0:00:47]} Rc2 {[%emt 0:01:12]} 32. g4 {[%emt 0:01:17]} Rxb2 {[%emt 0:02:34]} 33. a4 {[%emt 0:00:31]} Ra2 {[%emt 0:01:15]} 34. Rxf7 {[%emt 0:00:12]} Bg3+ {[%emt 0:02:05]} 35. Kd1 {[%emt 0:00:47]} Rxa4 {[%emt 0:00:14]} 36. d4 {[%emt 0:00:19]} a5 {[%emt 0:03:23]} 37. Kc2 {[%emt 0:00:23]} Rc4+ {[%emt 0:01:46]} 38. Kd3 {[%emt 0:00:35]} Rc1 {[%emt 0:00:20]} 39. Nc3 {[%emt 0:00:34]} Be1 {[%emt 0:00:58]} 40. Nb5+ {[%emt 0:00:00]} Ka6 {[%emt 0:00:00]} 41. Nd6 {[%emt 0:02:54]} a4 {[%emt 0:05:25]} 42. Nxb7 {[%emt 0:08:08]} a3 {[%emt 0:00:32]} 43. Nc5+ {[%emt 0:00:18]} Rxc5 {[%emt 0:00:59]} 44. dxc5 {[%emt 0:00:08]} a2 {[%emt 0:00:04]} 45. Rf8 {[%emt 0:05:06]} Ka7 0-1